bitfinex-derivatives/quotes_SOLF0:USTF0_20250131
["timestamp","ask_amount","ask_price","bid_price","bid_amount"]
[1738351145245,0.02832451,231.17,231.11,19.28053276]
[1738351145448,2.847,231.29,231.15,19.28053276]
[1738351146350,1.4656,231.29,231.15,19.28053276]
[1738351146541,1.3881,231.33,231.16,1.0571]
[1738351146542,0.02863032,231.24,231.16,1.0571]
[1738351146742,0.02863032,231.24,231.2,0.03278304]
[1738351147255,0.02863032,231.24,231.22,4.3262]
[1738351147746,0.02863032,231.24,231.23,4.3261]
[1738351148148,1.3881,231.33,231.2,0.03278304]
[1738351148651,2.8585,231.38,231.23,19.28053276]
[1738351149250,0.02761565,231.33,231.28,0.03175924]
[1738351149849,4.325,231.29,231.28,0.03175924]
[1738351150052,0.02761565,231.33,231.28,0.03175924]
[1738351150550,4.3247,231.31,231.28,0.03175924]
[1738351151148,0.02761565,231.33,231.28,0.03175924]
[1738351152352,4.3248,231.31,231.28,0.03175924]
[1738351152744,0.02761565,231.33,231.28,0.03175924]
[1738351152954,0.02761565,231.33,231.32,4.3245]
[1738351153350,1.3803,231.42,231.31,19.28053276]
[1738351153545,1.3803,231.42,231.33,4.3243]
[1738351153850,4.3225,231.43,231.27,19.28053276]
[1738351154054,1.4102,231.48,231.27,19.28053276]
[1738351154245,1.4102,231.48,231.33,4.3243]
[1738351154452,0.02742157,231.4,231.35,0.0275217]
[1738351155852,0.02742157,231.4,231.38,4.3232]
[1738351156048,0.02742157,231.4,231.35,19.30805446]
[1738351156452,0.02742157,231.4,231.39,4.3232]
[1738351156956,0.02742157,231.4,231.35,19.30805446]
[1738351158155,0.02742157,231.4,231.35,0.0275217]
[1738351158756,0.02742157,231.4,231.37,4.3235]
[1738351158953,0.02742157,231.4,231.35,19.30805446]
[1738351159152,0.02742157,231.4,231.37,4.3234]
[1738351159653,0.02742157,231.4,231.35,19.30805446]
[1738351160254,0.02742157,231.4,231.37,4.3235]
[1738351160454,0.02742157,231.4,231.35,19.30805446]
[1738351161354,4.3209,231.52,231.39,19.28053276]
[1738351161958,4.228,231.58,231.46,4.3218]
[1738351162456,0.03231785,231.54,231.5,0.02926783]
[1738351162851,4.228,231.58,231.43,19.28053276]
[1738351163057,0.02804881,231.54,231.5,0.02904583]
[1738351163456,4.3209,231.51,231.5,0.02904583]
[1738351163764,19.28053276,231.53,231.35,3.06]
[1738351163957,1.4782,231.52,231.31,19.28053276]
[1738351164162,1.4782,231.52,231.32,0.8069]
[1738351164864,0.03162269,231.44,231.4,0.03195726]
[1738351170061,0.03162269,231.44,231.41,4.3227]
[1738351170958,0.03162269,231.44,231.43,4.3224]
[1738351171157,1.4644,231.56,231.4,0.03195726]
[1738351171158,2.9019,231.56,231.4,0.03195726]
[1738351171356,2.9019,231.56,231.39,19.28053276]
[1738351171564,4.3208,231.52,231.43,19.28053276]
[1738351171764,2.9019,231.56,231.43,19.28053276]
[1738351171963,2.9019,231.56,231.47,19.28053276]
[1738351172165,0.02960326,231.54,231.49,0.02835243]
[1738351172866,0.02960326,231.54,231.51,19.28053276]
[1738351173067,0.02960326,231.54,231.52,4.3207]
[1738351173267,0.02960326,231.54,231.51,19.28053276]
[1738351173662,0.02960326,231.54,231.51,23.60143276]
[1738351174066,0.02960326,231.54,231.51,19.28053276]
[1738351175667,0.02960326,231.54,231.49,0.02835243]
[1738351179374,0.02960326,231.54,231.49,4.34945243]
[1738351179581,0.02960326,231.54,231.49,0.02835243]
[1738351180782,4.3207,231.53,231.49,0.02835243]
[1738351181182,0.02960326,231.54,231.49,0.02835243]
[1738351182282,4.35010326,231.54,231.49,0.02835243]
[1738351183984,0.02960326,231.54,231.49,0.02835243]
[1738351184588,0.02960326,231.54,231.52,4.3207]
[1738351184881,0.02960326,231.54,231.51,19.28053276]
[1738351185082,0.02960326,231.54,231.52,4.3207]
[1738351185387,0.02960326,231.54,231.51,19.28053276]
[1738351185590,0.02960326,231.54,231.49,0.02835243]
[1738351186185,4.35000326,231.54,231.49,0.02835243]
[1738351186587,0.02960326,231.54,231.49,0.02835243]
[1738351192989,0.02960326,231.54,231.35,19.28053276]
[1738351193390,19.28053276,231.53,231.37,4.3234]
[1738351193585,2.7298,231.52,231.35,19.28053276]
[1738351193789,4.3224,231.43,231.31,19.28053276]
[1738351194092,0.02925232,231.4,231.35,0.03064858]
[1738351194390,4.3218,231.46,231.31,19.28053276]
[1738351194691,0.03143146,231.4,231.36,4.3237]
[1738351194986,4.3219,231.46,231.36,4.35650623]
[1738351195186,4.3219,231.46,231.37,4.3235]
[1738351195389,0.03238075,231.43,231.39,0.02779006]
[1738351195693,4.3222,231.45,231.39,0.02779006]
[1738351195990,0.03032643,231.43,231.39,0.02779006]
[1738351199284,0.03032643,231.43,231.4,4.323]
[1738351200095,0.03032643,231.43,231.41,4.3227]
[1738351200291,1.4056,231.51,231.39,19.30832282]
[1738351200492,2.7298,231.52,231.44,19.28053276]
[1738351200690,1.4741,231.63,231.48,19.28053276]
[1738351200897,1.4741,231.63,231.52,19.28053276]
[1738351200898,4.2437,231.63,231.52,19.28053276]
[1738351201597,0.02764125,231.6,231.55,0.03024162]
[1738351204597,19.30817401,231.6,231.4,22.34053276]
[1738351204993,19.28053276,231.6,231.42,4.3226]
[1738351205190,19.28053276,231.6,231.4,19.28053276]
[1738351205392,19.28053276,231.56,231.38,9.42144079]
[1738351205589,4.321,231.51,231.38,9.42144079]
[1738351205801,2.7892,231.5,231.48,0.02808902]
[1738351206000,2.7892,231.5,231.38,9.42144079]
[1738351207099,4.3223,231.44,231.38,9.42144079]
[1738351207301,0.02791414,231.46,231.42,0.03070124]
[1738351207602,0.02791414,231.46,231.35,119.12886011]
[1738351207798,0.02791414,231.46,231.24,22.34053276]
[1738351207993,2.7892,231.5,231.24,31.78874268]
[1738351208193,2.7892,231.5,231.24,28.72874268]
[1738351208394,4.323,231.4,231.34,4.3241]
[1738351208600,19.28053276,231.48,231.28,19.28053276]
[1738351208798,0.03157136,231.39,231.35,0.02873979]
[1738351209195,19.28053276,231.44,231.24,19.28053276]
[1738351209396,0.03305565,231.39,231.35,0.02919303]
[1738351209606,4.3243,231.34,231.25,4.3256]
[1738351209795,1.4432,231.38,231.25,4.3256]
[1738351210001,1.4432,231.38,231.2,104.88053276]
[1738351210698,0.02786233,231.31,231.26,4.3256]
[1738351210902,0.02786233,231.31,231.24,19.28053276]
[1738351211300,4.325,231.29,231.2,104.88053276]
[1738351211706,0.02786233,231.31,231.2,85.6]
[1738351212103,0.02786233,231.31,231.16,19.28053276]
[1738351212309,4.3259,231.25,231.16,23.60793276]
[1738351212612,0.03208769,231.26,231.12,19.28053276]
[1738351212905,4.3264,231.22,231.14,4.3278]
[1738351213105,0.02950966,231.21,231.12,19.28053276]
[1738351213511,4.3267,231.2,231.12,19.28053276]
[1738351213699,0.02950966,231.21,231.12,19.28053276]
[1738351214106,0.02950966,231.21,231.08,54.49673482]
[1738351214107,4.3273,231.17,231.08,77.90346758]
[1738351214303,0.02950966,231.21,231.08,73.57456758]
[1738351214503,1.416,231.27,231.08,73.57456758]
[1738351214708,0.03033881,231.17,231.11,4.3283]
[1738351214908,0.03033881,231.17,231.12,19.28053276]
[1738351215406,0.03033881,231.17,231.13,4.328]
[1738351215813,0.03033881,231.17,231.12,19.28053276]
[1738351216304,0.03033881,231.17,231.08,73.57456758]
[1738351216504,0.03033881,231.17,231.08,77.90346758]
[1738351216808,0.03033881,231.17,231.08,73.57456758]
[1738351217310,4.3275,231.16,231.08,73.57456758]
[1738351218208,0.03033881,231.17,231.08,73.57456758]
[1738351218708,0.03033881,231.17,231.1,4.3286]
[1738351219305,0.03033881,231.17,231.11,4.3283]
[1738351220612,0.03033881,231.17,231.08,73.57456758]
[1738351221010,0.03033881,231.17,231.08,77.90346758]
[1738351221209,0.03033881,231.17,231.08,73.57456758]
[1738351223108,0.03033881,231.17,231.12,19.28053276]
[1738351224305,0.03033881,231.17,231.1,4.3286]
[1738351224509,0.03033881,231.17,231.08,54.29403482]
[1738351225015,4.3275,231.16,231.08,54.29403482]
[1738351225217,0.03033881,231.17,231.08,54.29403482]
[1738351225513,0.03033881,231.17,231.08,73.57456758]
[1738351226008,0.03033881,231.17,231.12,4.328]
[1738351226508,0.03033881,231.17,231.08,73.57456758]
[1738351226812,4.35763881,231.17,231.08,73.57456758]
[1738351227013,0.03033881,231.17,231.08,73.57456758]
[1738351227316,0.03033881,231.17,231.1,4.3286]
[1738351227515,0.03033881,231.17,231.08,73.57456758]
[1738351228117,0.03033881,231.17,231.1,4.3284]
[1738351229918,4.35773881,231.17,231.09,4.3288]
[1738351230118,0.03033881,231.17,231.04,19.28053276]
[1738351230318,19.28053276,231.16,231.02,85.54]
[1738351230509,4.3284,231.12,231.04,4.3295]
[1738351230913,0.02773951,231.1,231.04,4.3295]
[1738351231719,0.02773951,231.1,231.06,4.3293]
[1738351232019,1.4309,231.23,231.09,19.28053276]
[1738351232421,1.4309,231.23,231.05,19.28053276]
[1738351232720,19.28053276,231.21,231.02,85.54]
[1738351232922,4.3284,231.11,231.03,4.3297]
[1738351233213,4.3284,231.11,231.09,0.02776238]
[1738351233619,0.03045494,231.12,231.09,0.02776238]
[1738351234315,4.3286,231.1,231.09,0.02776238]
[1738351234512,0.03045494,231.12,230.97,19.28053276]
[1738351234718,19.28053276,231.09,230.91,1.1095]
[1738351235018,19.28053276,231.09,230.8,148.91107513]
[1738351235019,19.28053276,231.05,230.85,19.28053276]
[1738351235219,2.8042,231.04,230.85,19.28053276]
[1738351235612,4.3305,231.0,230.91,4.3321]
[1738351235810,0.03028419,230.98,230.89,19.28053276]
[1738351236319,0.03028419,230.98,230.85,19.28053276]
[1738351236520,0.03028419,230.98,230.89,19.28053276]
[1738351236919,0.03028419,230.98,230.93,19.28053276]
[1738351237413,0.03028419,230.98,230.97,4.331]
[1738351238221,4.3289,231.09,230.93,19.28053276]
[1738351238425,1.4615,231.12,230.97,19.28053276]
[1738351238819,5.7898,231.12,231.02,4.3299]
[1738351239221,1.4615,231.12,231.02,4.3299]
[1738351239524,0.03191684,231.09,231.05,0.03194062]
[1738351239928,4.36071684,231.09,231.05,0.03194062]
[1738351240420,0.03191684,231.09,231.05,0.03194062]
[1738351242621,4.3293,231.06,231.05,0.03194062]
[1738351243128,0.03191684,231.09,231.05,0.03194062]
[1738351245031,0.03191684,231.09,231.06,4.3293]
[1738351245229,0.03191684,231.09,231.05,0.03194062]
[1738351245431,0.03191684,231.09,231.08,4.3289]
[1738351245932,0.03191684,231.09,231.05,19.31247338]
[1738351246627,0.03191684,231.09,231.08,4.3289]
[1738351247326,0.03191684,231.09,231.07,4.3291]
[1738351248123,1.3806,231.21,231.05,19.31247338]
[1738351248330,1.3806,231.21,231.05,19.28053276]
[1738351248534,4.3273,231.17,231.09,4.3287]
[1738351248835,1.3806,231.21,231.09,19.28053276]
[1738351249033,5.7071,231.21,231.13,4.3278]
[1738351249334,0.03221463,231.19,231.15,0.02887043]
[1738351251731,4.3275,231.16,231.15,0.02887043]
[1738351252333,19.28053276,231.17,231.01,20.17123276]
[1738351252727,4.3281,231.13,231.03,4.3299]
[1738351252931,19.28053276,231.17,231.03,4.3299]
[1738351253127,19.28053276,231.17,230.99,0.1712]
[1738351253436,0.02830805,231.1,231.06,0.03195576]
[1738351254233,4.3291,231.08,231.06,0.03195576]
[1738351254431,0.02830805,231.1,231.06,0.03195576]
[1738351255431,0.02830805,231.1,230.94,0.8903]
[1738351255636,1.4692,231.12,230.94,0.8903]
[1738351256234,4.3296,231.05,230.94,0.8903]
[1738351256439,1.4692,231.12,230.94,0.8903]
[1738351256640,0.02735519,231.02,230.96,4.3311]
[1738351256836,0.02735519,231.02,230.94,0.8903]
[1738351257832,4.35765519,231.02,230.93,23.61213276]
[1738351258031,0.02735519,231.02,230.93,23.61213276]
[1738351258441,4.35745519,231.02,230.93,23.61213276]
[1738351258740,4.35745519,231.02,230.93,19.28053276]
[1738351259436,4.3303,231.01,230.93,23.61213276]
[1738351259736,0.02735519,231.02,230.93,19.28053276]
[1738351260042,4.3306,231.0,230.89,73.61828912]
[1738351260442,0.03298116,230.97,230.89,73.61828912]
[1738351261340,0.03298116,230.97,230.93,19.28053276]
[1738351261643,0.03298116,230.97,230.94,4.3314]
[1738351262341,0.03298116,230.97,230.89,54.33775636]
[1738351263137,0.03298116,230.97,230.9,4.3323]
[1738351263336,0.03298116,230.97,230.85,0.1704]
[1738351263543,0.03298116,230.97,230.84,19.28053276]
[1738351264742,0.03298116,230.97,230.86,4.3329]
[1738351265043,0.03298116,230.97,230.88,19.28053276]
[1738351265246,4.3312,230.96,230.88,19.28053276]
[1738351265443,19.28053276,231.04,230.84,19.28053276]
[1738351265444,0.03308566,230.95,230.84,19.28053276]
[1738351265644,19.28053276,231.04,230.84,19.28053276]
[1738351265952,0.03253271,230.92,230.84,19.28053276]
[1738351266943,0.03253271,230.92,230.87,4.3328]
[1738351267149,0.03253271,230.92,230.84,19.28053276]
[1738351267348,1.3315,231.07,230.88,19.28053276]
[1738351267646,1.3315,231.07,230.96,19.28053276]
[1738351268052,4.3294,231.06,230.98,4.3308]
[1738351268346,19.28053276,231.01,230.83,19.28053276]
[1738351268540,4.3319,230.93,230.83,4.3334]
[1738351268744,19.28053276,230.97,230.81,9.42970315]
[1738351268943,2.8091,230.96,230.86,0.03320979]
[1738351269246,0.0278862,230.91,230.86,0.03320979]
[1738351269640,4.3329,230.87,230.86,0.03320979]
[1738351270246,0.0278862,230.91,230.86,0.03320979]
[1738351270750,4.3325,230.89,230.86,0.03320979]
[1738351271445,4.3328,230.88,230.86,0.03320979]
[1738351271747,0.0278862,230.91,230.86,0.03320979]
[1738351271949,1.4076,230.9,230.86,0.03320979]
[1738351272152,4.3329,230.87,230.86,0.03320979]
[1738351272543,1.4076,230.9,230.75,138.40939287]
[1738351272754,19.28053276,230.89,230.71,19.28053276]
[1738351273153,4.3335,230.84,230.73,4.3355]
[1738351273451,19.28053276,230.89,230.65,1.1563]
[1738351273452,19.28053276,230.89,230.67,19.28053276]
[1738351273652,4.3351,230.76,230.67,19.28053276]
[1738351274044,0.03307236,230.74,230.71,19.28053276]
[1738351274248,4.334,230.81,230.71,23.61623276]
[1738351274448,0.02873887,230.75,230.71,19.28053276]
[1738351274955,0.02873887,230.75,230.73,4.3354]
[1738351275550,0.02873887,230.75,230.71,19.28053276]
[1738351275856,1.4076,230.9,230.71,19.28053276]
[1738351276050,4.3332,230.86,230.75,4.3351]
[1738351276250,1.4076,230.9,230.71,19.28053276]
[1738351276944,4.3335,230.84,230.71,19.28053276]
[1738351277149,0.02863546,230.83,230.78,0.03223547]
[1738351277451,19.28053276,230.89,230.67,19.28053276]
[1738351277648,0.02931045,230.83,230.78,0.03191882]
[1738351277847,0.02931045,230.83,230.67,19.28053276]
[1738351278045,1.456,230.84,230.67,19.28053276]
[1738351278255,4.3348,230.77,230.68,4.3363]
[1738351278548,1.456,230.84,230.67,19.28053276]
[1738351278954,4.335,230.76,230.68,4.3364]
[1738351279154,0.02838329,230.78,230.67,19.28053276]
[1738351279754,4.36298329,230.78,230.7,4.336]
[1738351279950,0.02838329,230.78,230.67,19.28053276]
[1738351280254,19.28053276,230.73,230.53,54.41615119]
[1738351280454,19.28053276,230.73,230.54,0.7964688]
[1738351280652,1.4163,230.72,230.53,0.7964688]
[1738351280847,0.03307446,230.66,230.52,19.28053276]
[1738351281052,4.3372,230.64,230.52,19.28053276]
[1738351281254,0.02862694,230.61,230.52,19.28053276]
[1738351281456,0.02862694,230.61,230.56,19.28053276]
[1738351281756,1.4163,230.72,230.6,19.28053276]
[1738351281949,1.474,230.75,230.64,19.28053276]
[1738351282150,1.4515,230.77,230.64,19.28053276]
[1738351282657,1.474,230.8,230.64,19.28053276]
[1738351282854,1.474,230.8,230.68,0.02898711]
[1738351282855,0.02783405,230.73,230.68,0.02898711]
[1738351283055,0.02783405,230.73,230.68,19.30951987]
[1738351283258,1.4314,230.82,230.72,19.28053276]
[1738351283757,1.4314,230.82,230.64,19.28053276]
[1738351283959,1.4288,230.81,230.64,19.28053276]
[1738351284347,0.03269428,230.75,230.64,19.28053276]
[1738351284653,0.03269428,230.75,230.7,0.03262275]
[1738351285055,4.3351,230.76,230.68,19.28053276]
[1738351285258,0.02856491,230.75,230.7,0.0320999]
[1738351285657,0.02856491,230.75,230.7,4.3680999]
[1738351285853,0.02856491,230.75,230.7,0.0320999]
[1738351286054,0.02856491,230.75,230.72,19.28053276]
[1738351286263,0.02856491,230.75,230.7,0.0320999]
[1738351288658,0.02856491,230.75,230.7,4.3679999]
[1738351288863,0.02856491,230.75,230.7,0.0320999]
[1738351289165,0.02856491,230.75,230.71,4.3358]
[1738351289459,0.02856491,230.75,230.7,0.0320999]
[1738351290862,0.02856491,230.75,230.7,4.3680999]
[1738351291663,0.02856491,230.75,230.7,0.0320999]
[1738351291957,0.02856491,230.75,230.72,19.28053276]
[1738351292362,0.02856491,230.75,230.73,4.3353]
[1738351292960,0.02856491,230.75,230.72,19.28053276]
[1738351293161,20.75103276,230.92,230.72,19.28053276]
[1738351293162,1.4705,230.92,230.72,19.28053276]
[1738351293366,1.4705,230.92,230.76,19.28053276]
[1738351293664,1.4705,230.92,230.8,19.28053276]
[1738351293960,1.4523,230.93,230.8,19.28053276]
[1738351294167,1.4705,230.99,230.8,19.28053276]
[1738351294465,0.03252196,230.89,230.84,0.02893763]
[1738351294868,4.3317,230.92,230.83,4.3333]
[1738351295070,0.02942296,230.89,230.84,0.02901265]
[1738351295264,2.9228,230.99,230.76,19.28053276]
[1738351295668,0.0313891,230.85,230.84,0.03214742]
[1738351295968,2.9228,230.99,230.76,19.28053276]
[1738351296170,0.032758,230.87,230.76,19.28053276]
[1738351296371,0.032758,230.87,230.8,19.28053276]
[1738351296568,0.032758,230.87,230.82,4.3335]
[1738351296768,2.9228,230.99,230.8,19.28053276]
[1738351296970,0.03257531,230.87,230.8,19.28053276]
[1738351297169,2.9228,230.99,230.83,4.3333]
[1738351297368,2.9228,230.99,230.81,0.02833603]
[1738351297571,0.02864968,230.86,230.8,19.28053276]
[1738351297772,2.9228,230.99,230.88,0.03095871]
[1738351298072,2.9228,230.99,230.8,19.28053276]
[1738351298264,0.031562,230.96,230.91,0.0319852]
[1738351298665,2.9228,230.99,230.84,19.28053276]
[1738351298864,0.0298157,230.96,230.91,0.03125333]
[1738351299267,4.3317,230.94,230.84,19.28053276]
[1738351299473,0.03184732,230.96,230.91,0.02804675]
[1738351299663,19.28053276,231.04,230.91,0.02804675]
[1738351299869,4.3319,230.92,230.91,0.02804675]
[1738351300070,0.03149695,230.96,230.91,0.02804675]
[1738351301072,4.3317,230.92,230.91,0.02804675]
[1738351302073,4.36249695,230.96,230.91,0.02804675]
[1738351302270,0.03149695,230.96,230.91,0.02804675]
[1738351302570,0.03149695,230.96,230.92,19.28053276]
[1738351304767,0.03149695,230.96,230.92,23.61213276]
[1738351304967,0.03149695,230.96,230.92,19.28053276]
[1738351305871,2.8717,231.07,230.94,4.3312]
[1738351306075,4.3294,231.04,230.92,19.28053276]
[1738351306476,4.3294,231.04,230.96,19.28053276]
[1738351306670,2.8717,231.07,230.96,19.28053276]
[1738351306671,1.4327,231.07,230.96,19.28053276]
[1738351306875,4.3291,231.06,230.97,4.3307]
[1738351307081,1.4327,231.07,230.88,19.28053276]
[1738351307082,25.19240371,231.2,231.0,19.28053276]
[1738351307277,4.3279,231.12,231.04,19.28053276]
[1738351307577,4.35744358,231.12,231.06,0.03077665]
[1738351307779,0.02954358,231.12,231.06,0.03077665]
[1738351307978,4.3281,231.11,231.06,0.03077665]
[1738351308180,0.02954358,231.12,231.06,0.03077665]
[1738351308775,0.02954358,231.12,231.08,19.28053276]
[1738351309081,0.02954358,231.12,231.1,4.3282]
[1738351309380,1.3292,231.25,231.08,19.28053276]
[1738351309575,2.7755,231.25,231.12,19.28053276]
[1738351309977,2.7755,231.25,231.08,23.60903276]
[1738351310176,2.7755,231.25,231.08,19.28053276]
[1738351310372,2.7755,231.25,231.14,0.02965969]
[1738351310573,0.02811749,231.19,231.14,0.02965969]
[1738351311982,4.3268,231.18,231.14,0.02965969]
[1738351312183,0.02811749,231.19,231.14,0.02965969]
[1738351312580,4.3273,231.15,231.14,0.02965969]
[1738351313284,4.328,231.12,231.04,19.28053276]
[1738351313484,4.328,231.12,231.04,23.60993276]
[1738351313679,19.28053276,231.2,231.04,23.60993276]
[1738351313875,19.28053276,231.24,231.04,19.28053276]
[1738351314080,19.28053276,231.24,231.04,23.61013276]
[1738351314385,0.03129197,231.16,231.12,0.03013777]
[1738351314985,4.328,231.13,231.12,0.03013777]
[1738351315286,1.4097,231.15,231.0,19.28053276]
[1738351315583,1.4097,231.15,231.03,4.3296]
[1738351315785,1.4097,231.15,231.0,19.28053276]
[1738351315980,1.3756,231.14,231.0,19.28053276]
[1738351316485,0.02976895,231.09,231.05,0.02855774]
[1738351316686,4.35836895,231.09,231.05,0.02855774]
[1738351316982,0.02976895,231.09,231.05,0.02855774]
[1738351317290,4.35836895,231.09,231.05,0.02855774]
[1738351317981,0.02976895,231.09,231.05,0.02855774]
[1738351319383,0.02976895,231.09,231.05,4.35775774]
[1738351319687,0.02976895,231.09,231.05,0.02855774]
[1738351319980,0.02976895,231.09,231.08,19.28053276]
[1738351320579,0.02976895,231.09,231.05,0.02855774]
[1738351321484,4.3292,231.06,231.05,0.02855774]
[1738351321685,0.02976895,231.09,231.05,0.02855774]
[1738351322083,0.02976895,231.09,231.08,19.28053276]
[1738351322786,1.3442,231.2,231.08,19.28053276]
[1738351323189,4.3281,231.12,231.08,19.28053276]
[1738351323383,1.3442,231.2,231.0,19.28053276]
[1738351323584,19.28053276,231.17,231.0,19.28053276]
[1738351323785,4.3295,231.05,230.96,19.28053276]
[1738351323986,0.03233134,231.11,231.06,0.03015179]
[1738351324187,2.935,231.12,230.96,19.28053276]
[1738351324487,0.03330889,231.11,231.06,0.02842851]
[1738351324686,1.4282,231.11,231.06,0.02842851]
[1738351324886,1.45849803,231.11,231.06,0.02842851]
[1738351325192,4.329,231.07,231.06,0.02842851]
[1738351325390,1.45849803,231.11,230.96,19.28053276]
[1738351325889,1.4282,231.11,230.96,19.28053276]
[1738351326080,4.3302,231.01,230.94,4.3313]
[1738351326282,1.4282,231.11,230.92,22.9601666]
[1738351326481,1.4282,231.11,230.99,0.03144692]
[1738351326686,0.02804126,231.04,230.99,0.03144692]
[1738351327790,4.35764126,231.04,230.99,0.03144692]
[1738351327994,2.935,231.12,231.0,19.28053276]
[1738351328195,2.935,231.12,230.92,16.61963384]
[1738351328196,2.935,231.12,231.04,19.28053276]
[1738351328391,8.6505,231.28,231.08,4.3288]
[1738351328392,22.34053276,231.26,231.08,4.3288]
[1738351328597,22.34053276,231.26,231.08,23.60933276]
[1738351328797,19.28053276,231.26,231.08,19.28053276]
[1738351329000,4.3274,231.16,231.08,19.28053276]
[1738351329190,4.3274,231.16,231.15,0.03007742]
[1738351329395,19.28053276,231.26,231.08,19.28053276]
[1738351329595,0.03240181,231.18,231.13,0.02884251]
[1738351331900,4.3277,231.14,231.13,0.02884251]
[1738351332399,0.03240181,231.18,231.13,0.02884251]
[1738351332699,4.3277,231.14,231.13,0.02884251]
[1738351333706,0.03240181,231.18,231.13,0.02884251]
[1738351334308,4.3277,231.14,231.13,0.02884251]
[1738351335401,1.3526,231.16,231.0,19.28053276]
[1738351335904,1.3526,231.16,230.98,3.06]
[1738351336404,1.3526,231.16,230.99,4.3305]
[1738351336603,0.0305486,231.09,231.05,0.0282955]
[1738351337004,4.3294,231.06,231.05,0.0282955]
[1738351337400,0.0305486,231.09,231.05,0.0282955]
[1738351337603,0.0305486,231.09,231.05,19.30882826]
[1738351339505,0.0305486,231.09,231.05,0.0282955]
[1738351340804,0.0305486,231.09,231.05,19.30882826]
[1738351341407,1.4095,231.21,231.05,19.30882826]
[1738351341706,4.3268,231.18,231.09,23.60883276]
[1738351341908,1.4095,231.21,231.09,19.28053276]
[1738351342607,1.4095,231.21,231.13,0.02903883]
[1738351342608,0.02941464,231.17,231.13,0.02903883]
[1738351342810,5.91187095,231.31,231.13,19.30957159]
[1738351343011,8.77747095,231.31,231.22,19.28053276]
[1738351343411,5.91187095,231.33,231.22,19.28053276]
[1738351343811,5.91187095,231.33,231.26,19.28053276]
[1738351344012,5.91187095,231.33,231.3,19.28053276]
[1738351344217,17.73561285,231.34,231.3,19.28053276]
[1738351344417,47.29496761,231.35,231.3,19.28053276]
[1738351344617,70.1870704,231.37,231.35,19.28053276]
[1738351344916,22.82320856,231.37,231.35,19.28053276]
[1738351345818,22.82320856,231.37,231.34,0.02752629]
[1738351346220,22.82320856,231.37,231.26,22.34053276]
[1738351346419,0.02730648,231.38,231.33,0.03275075]
[1738351347815,0.02730648,231.38,231.34,19.28053276]
[1738351348513,19.28053276,231.55,231.34,19.28053276]
[1738351348716,23.43823276,231.59,231.39,19.28053276]
[1738351348914,4.3208,231.51,231.39,23.60343276]
[1738351349115,23.43823276,231.59,231.39,19.28053276]
[1738351349718,19.28053276,231.55,231.35,19.28053276]
[1738351349912,0.03099071,231.51,231.47,0.03069146]
[1738351350325,4.3213,231.48,231.47,0.03069146]
[1738351351424,0.03099071,231.51,231.35,19.28053276]
[1738351351619,19.28053276,231.51,231.31,19.28053276]
[1738351351818,19.28053276,231.55,231.35,19.28053276]
[1738351352223,22.03593276,231.59,231.39,19.28053276]
[1738351352627,4.321,231.49,231.47,0.0315635]
[1738351353222,4.3212,231.48,231.47,0.0315635]
[1738351353725,0.0287895,231.51,231.35,19.28053276]
[1738351354024,19.28053276,231.54,231.35,19.28053276]
[1738351354623,4.3218,231.45,231.36,4.3234]
[1738351354822,4.3218,231.45,231.42,0.02739504]
[1738351355022,4.322,231.44,231.42,0.02739504]
[1738351355527,0.03087281,231.47,231.42,0.02739504]
[1738351355726,4.3219,231.45,231.42,0.02739504]
[1738351356223,0.03087281,231.47,231.42,0.02739504]
[1738351356422,4.3221,231.43,231.42,0.02739504]
[1738351357223,0.03087281,231.47,231.31,19.28053276]
[1738351357422,4.3235,231.38,231.31,19.28053276]
[1738351358130,1.3344,231.46,231.31,19.28053276]
[1738351358131,4.3229,231.4,231.31,19.28053276]
[1738351358327,1.3344,231.46,231.31,19.28053276]
[1738351358529,0.02999989,231.38,231.33,0.03008612]
[1738351359433,4.3239,231.34,231.33,0.03008612]
[1738351360034,4.3247,231.3,231.22,19.28053276]
[1738351360633,4.3253,231.27,231.22,19.28053276]
[1738351360826,19.28053276,231.38,231.2,119.12886011]
[1738351361031,19.28053276,231.34,231.2,119.12886011]
[1738351361225,1.4149,231.33,231.12,138.40939287]
[1738351361425,0.03128471,231.31,231.27,0.02969908]
[1738351361628,1.4149,231.33,231.16,23.60773276]
[1738351361827,4.3255,231.26,231.16,19.28053276]
[1738351362132,0.03058429,231.31,231.27,0.03129295]
[1738351362323,4.3246,231.31,231.2,19.28053276]
[1738351362527,4.35269924,231.31,231.27,0.03052844]
[1738351362726,0.02809924,231.31,231.27,0.03052844]
[1738351363428,4.3248,231.29,231.27,0.03052844]
[1738351363830,0.02809924,231.31,231.27,0.03052844]